fUSD/lending_fUSD_20250530
["ID","MTS","AMOUNT","RATE_DAILY","PERIOD"]
[363201444,1748621467754,-420.0,0.00023287,2]
[363201445,1748621467765,-420.0,0.00023287,2]
[363201446,1748621467774,-420.0,0.00023287,2]
[363201447,1748621467784,-420.0,0.00023287,2]
[363201448,1748621467793,-420.0,0.00023287,2]
[363201449,1748621467803,-420.0,0.00023287,2]
[363201450,1748621467812,-420.0,0.00023287,2]
[363201451,1748621467822,-439.34095072,0.00023287,2]
[363201452,1748621467831,-479.58,0.00023287,2]
[363201453,1748621467841,-424.87687158,0.00023287,2]
[363201454,1748621467851,-519.50436067,0.00023287,2]
[363201455,1748621467860,-420.0,0.00023287,2]
[363201456,1748621467869,-420.0,0.00023287,2]
[363201457,1748621467879,-939.99,0.00023287,2]
[363201458,1748621467888,-420.0,0.00023287,2]
[363201459,1748621467898,-420.0,0.00023287,2]
[363201460,1748621467907,-420.0,0.00023287,2]
[363201461,1748621467918,-420.0,0.00023287,2]
[363201462,1748621467927,-501.62,0.00023287,2]
[363201463,1748621467937,-420.0,0.00023287,2]
[363201464,1748621467947,-420.0,0.00023287,2]
[363201465,1748621467956,-420.0,0.00023287,2]
[363201466,1748621467966,-420.0,0.00023287,2]
[363201467,1748621467975,-471.1,0.00023287,2]
[363201468,1748621467984,-420.0,0.00023287,2]
[363201469,1748621467994,-420.0,0.00023287,2]
[363201470,1748621468003,-420.0,0.00023287,2]
[363201471,1748621468013,-420.0,0.00023287,2]
[363201472,1748621468023,-420.0,0.00023287,2]
[363201473,1748621468033,-420.0,0.00023287,2]
[363201474,1748621468042,-420.0,0.00023287,2]
[363201475,1748621468053,-493.78,0.00023287,2]
[363201476,1748621468062,-420.0,0.00023287,2]
[363201477,1748621468072,-420.0,0.00023287,2]
[363201478,1748621468081,-442.33,0.00023287,2]
[363201479,1748621468091,-420.0,0.00023287,2]
[363201480,1748621468101,-420.0,0.00023287,2]
[363201481,1748621468111,-420.0,0.00023287,2]
[363201482,1748621468119,-654.87,0.00023287,2]
[363201483,1748621468129,-420.0,0.00023287,2]
[363201484,1748621468138,-420.0,0.00023287,2]
[363201485,1748621468148,-420.0,0.00023287,2]
[363201486,1748621468157,-420.0,0.00023287,2]
[363201487,1748621468167,-618.64,0.00023287,2]
[363201488,1748621468177,-420.0,0.00023287,2]
[363201489,1748621468186,-420.0,0.00023287,2]
[363201490,1748621468196,-665.03,0.00023287,2]
[363201491,1748621468205,-420.0,0.00023287,2]
[363201492,1748621468216,-420.0,0.00023287,2]
[363201493,1748621468227,-556.67,0.00023287,2]
[363201494,1748621468236,-420.0,0.00023287,2]
[363201495,1748621468246,-420.0,0.00023287,2]
[363201496,1748621468255,-420.0,0.00023287,2]
[363201497,1748621468265,-316.7693879,0.00023287,2]
[363201498,1748621468275,-303.27343179,0.00023287,2]
[363201499,1748621468284,-420.0,0.00023287,2]
[363201500,1748621468294,-420.0,0.00023287,2]
[363201501,1748621468304,-518.65,0.00023287,2]
[363201502,1748621468313,-420.0,0.00023287,2]
[363201503,1748621468323,-527.91,0.00023287,2]
[363201504,1748621468332,-994.08,0.00023287,2]
[363201505,1748621468341,-832.68,0.00023287,2]
[363201506,1748621468351,-420.0,0.00023287,2]
[363201507,1748621468361,-420.0,0.00023287,2]
[363201508,1748621468370,-420.0,0.00023287,2]
[363201509,1748621468379,-420.0,0.00023287,2]
[363201510,1748621468389,-420.0,0.00023287,2]
[363201511,1748621468398,-502.62,0.00023287,2]
[363201512,1748621468408,-420.0,0.00023287,2]
[363201513,1748621468417,-769.55,0.00023287,2]
[363201514,1748621468427,-420.0,0.00023287,2]
[363201515,1748621468436,-420.0,0.00023287,2]
[363201516,1748621468447,-565.59,0.00023287,2]
[363201517,1748621468456,-420.0,0.00023287,2]
[363201518,1748621468466,-420.0,0.00023287,2]
[363201519,1748621468475,-420.0,0.00023287,2]
[363201520,1748621468485,-250.0,0.00023287,2]
[363201521,1748621468494,-454.46,0.00023287,2]
[363201522,1748621468504,-420.0,0.00023287,2]
[363201523,1748621468513,-420.0,0.00023287,2]
[363201524,1748621468523,-420.0,0.00023287,2]
[363201525,1748621468532,-420.0,0.00023287,2]
[363201526,1748621468542,-420.0,0.00023287,2]
[363201527,1748621468552,-420.0,0.00023287,2]
[363201528,1748621468562,-420.0,0.00023287,2]
[363201529,1748621468572,-591.9,0.00023287,2]
[363201530,1748621468582,-420.0,0.00023287,2]
[363201531,1748621468592,-482.59,0.00023287,2]
[363201532,1748621468603,-1552.41,0.00023287,2]
[363201533,1748621468614,-420.0,0.00023287,2]
[363201534,1748621468623,-420.0,0.00023287,2]
[363201535,1748621468633,-420.0,0.00023287,2]
[363201536,1748621468643,-389.24076601,0.00023287,2]
[363201537,1748621468653,-663.63,0.00023287,2]
[363201538,1748621468663,-420.0,0.00023287,2]
[363201539,1748621468674,-420.0,0.00023287,2]
[363201540,1748621468687,-456.47,0.00023287,2]
[363201541,1748621468697,-420.0,0.00023287,2]
[363201542,1748621468709,-420.0,0.00023287,2]
[363201543,1748621468720,-563.71,0.00023287,2]
[363201544,1748621468732,-420.0,0.00023287,2]
[363201545,1748621468741,-565.86,0.00023287,2]
[363201546,1748621468750,-499.67,0.00023287,2]
[363201547,1748621468759,-420.0,0.00023287,2]
[363201548,1748621468768,-477.92,0.00023287,2]
[363201549,1748621468776,-420.0,0.00023287,2]
[363201550,1748621468786,-472.21,0.00023287,2]
[363201551,1748621468795,-420.0,0.00023287,2]
[363201552,1748621468806,-712.95,0.00023287,2]
[363201553,1748621468815,-1641.75,0.00023287,2]
[363201554,1748621468824,-420.0,0.00023287,2]
[363201555,1748621468834,-420.0,0.00023287,2]
[363201556,1748621468843,-420.0,0.00023287,2]
[363201557,1748621468852,-420.0,0.00023287,2]
[363201558,1748621468862,-420.0,0.00023287,2]
[363201559,1748621468871,-420.0,0.00023287,2]
[363201560,1748621468880,-714.4,0.00023287,2]
[363201561,1748621468890,-420.0,0.00023287,2]
[363201562,1748621468899,-424.32,0.00023287,2]
[363201563,1748621468908,-152.45135434,0.00023287,2]
[363201564,1748621468918,-420.0,0.00023287,2]
[363201565,1748621468927,-533.52,0.00023287,2]
[363201566,1748621468937,-420.0,0.00023287,2]
[363201567,1748621468946,-420.0,0.00023287,2]
[363201568,1748621468956,-420.0,0.00023287,2]
[363201569,1748621468965,-420.0,0.00023287,2]
[363201570,1748621468974,-420.0,0.00023287,2]
[363201571,1748621468984,-420.0,0.00023287,2]
[363201572,1748621468994,-558.89,0.00023287,2]
[363201573,1748621469004,-754.53,0.00023287,2]
[363201574,1748621469013,-420.0,0.00023287,2]
[363201575,1748621469023,-420.0,0.00023287,2]
[363201576,1748621469032,-420.0,0.00023287,2]
[363201577,1748621469042,-420.0,0.00023287,2]
[363201578,1748621469054,-420.0,0.00023287,2]
[363201579,1748621469063,-420.0,0.00023287,2]
[363201580,1748621469073,-420.0,0.00023287,2]
[363201581,1748621469082,-420.0,0.00023287,2]
[363201582,1748621469092,-420.0,0.00023287,2]
[363201583,1748621469102,-420.0,0.00023287,2]
[363201584,1748621469111,-1074.85,0.00023287,2]
[363201585,1748621469120,-420.0,0.00023287,2]
[363201586,1748621469130,-420.0,0.00023287,2]
[363201587,1748621469140,-420.0,0.00023287,2]
[363201588,1748621469150,-420.0,0.00023287,2]
[363201589,1748621469160,-420.0,0.00023287,2]
[363201590,1748621469170,-522.22,0.00023287,2]
[363201591,1748621469180,-420.0,0.00023287,2]
[363201592,1748621469190,-420.0,0.00023287,2]
[363201593,1748621469201,-420.0,0.00023287,2]
[363201594,1748621469210,-420.0,0.00023287,2]
[363201595,1748621469220,-420.0,0.00023287,2]
[363201596,1748621469230,-420.0,0.00023287,2]
[363201597,1748621469240,-420.0,0.00023287,2]
[363201598,1748621469249,-420.0,0.00023287,2]
[363201599,1748621469259,-420.0,0.00023287,2]
[363201600,1748621469269,-1366.25,0.00023287,2]
[363201601,1748621469279,-420.0,0.00023287,2]
[363201602,1748621469288,-420.0,0.00023287,2]
[363201603,1748621469298,-372.8019615,0.00023287,2]
[363201604,1748621469310,-528.28,0.00023287,2]
[363201605,1748621469319,-420.0,0.00023287,2]
[363201606,1748621469331,-420.0,0.00023287,2]
[363201607,1748621469341,-325.75303326,0.00023287,2]
[363201608,1748621469351,-420.0,0.00023287,2]
[363201609,1748621469361,-420.0,0.00023287,2]
[363201610,1748621469371,-456.12,0.00023287,2]
[363201611,1748621469381,-420.0,0.00023287,2]
[363201612,1748621469390,-420.0,0.00023287,2]
[363201613,1748621469401,-420.0,0.00023287,2]
[363201614,1748621469411,-420.0,0.00023287,2]
[363201615,1748621469420,-420.0,0.00023287,2]
[363201616,1748621469430,-420.0,0.00023287,2]
[363201617,1748621469440,-420.0,0.00023287,2]
[363201618,1748621469451,-420.0,0.00023287,2]
[363201619,1748621469461,-420.0,0.00023287,2]
[363201620,1748621469470,-420.0,0.00023287,2]
[363201621,1748621469480,-420.0,0.00023287,2]
[363201622,1748621469491,-451.25,0.00023287,2]
[363201623,1748621469500,-669.88,0.00023287,2]
[363201624,1748621469510,-420.0,0.00023287,2]
[363201625,1748621469520,-420.0,0.00023287,2]
[363201626,1748621469530,-633.2,0.00023287,2]
[363201627,1748621469540,-420.0,0.00023287,2]
[363201628,1748621469550,-420.0,0.00023287,2]
[363201629,1748621469560,-420.0,0.00023287,2]
[363201630,1748621469570,-420.0,0.00023287,2]
[363201631,1748621469580,-420.0,0.00023287,2]
[363201632,1748621469590,-420.0,0.00023287,2]
[363201633,1748621469600,-420.0,0.00023287,2]
[363201634,1748621469609,-420.0,0.00023287,2]
[363201635,1748621469619,-420.0,0.00023287,2]
[363201636,1748621469628,-491.81,0.00023287,2]
[363201637,1748621469638,-420.0,0.00023287,2]
[363201638,1748621469648,-420.0,0.00023287,2]
[363201639,1748621469658,-420.0,0.00023287,2]
[363201640,1748621469668,-984.97,0.00023287,2]
[363201641,1748621469678,-420.0,0.00023287,2]
[363201642,1748621469691,-420.0,0.00023287,2]
[363201643,1748621469701,-420.0,0.00023287,2]
[363201644,1748621469712,-561.86,0.00023287,2]
[363201645,1748621469724,-420.0,0.00023287,2]
[363201646,1748621469735,-646.16,0.00023287,2]
[363201647,1748621469745,-609.7,0.00023287,2]
[363201648,1748621469756,-1453.08,0.00023287,2]
[363201649,1748621469767,-1000.74,0.00023287,2]
[363201650,1748621469778,-420.0,0.00023287,2]
[363201651,1748621469788,-420.0,0.00023287,2]
[363201652,1748621469798,-420.0,0.00023287,2]
[363201653,1748621469809,-420.0,0.00023287,2]
[363201654,1748621469819,-420.0,0.00023287,2]
[363201655,1748621469830,-420.0,0.00023287,2]
[363201656,1748621469840,-420.0,0.00023287,2]
[363201657,1748621469850,-584.98,0.00023287,2]
[363201658,1748621469860,-602.51,0.00023287,2]
[363201659,1748621469870,-653.92,0.00023287,2]
[363201660,1748621469880,-420.0,0.00023287,2]
[363201661,1748621469891,-420.0,0.00023287,2]
[363201662,1748621469901,-420.0,0.00023287,2]
[363201663,1748621469910,-474.55,0.00023287,2]
[363201664,1748621469920,-611.17,0.00023287,2]
[363201665,1748621469930,-715.72,0.00023287,2]
[363201666,1748621469940,-46503.35,0.00023287,2]
[363201667,1748621469952,-601.37,0.00023287,2]
[363201668,1748621469963,-420.0,0.00023287,2]
[363201669,1748621469972,-420.0,0.00023287,2]
[363201670,1748621469982,-547.8,0.00023287,2]
[363201671,1748621469992,-420.0,0.00023287,2]
[363201672,1748621470002,-420.0,0.00023287,2]
[363201673,1748621470012,-420.0,0.00023287,2]
[363201674,1748621470022,-1585.24,0.00023287,2]
[363201675,1748621470032,-424.70580846,0.00023287,2]
[363201676,1748621470042,-420.0,0.00023287,2]
[363201677,1748621470052,-420.0,0.00023287,2]
[363201678,1748621470062,-420.0,0.00023287,2]
[363201679,1748621470071,-420.0,0.00023287,2]
[363201680,1748621470081,-477.09,0.00023287,2]
[363201681,1748621470091,-824.32,0.00023287,2]
[363201682,1748621470101,-420.0,0.00023287,2]
[363201683,1748621470110,-448.1,0.00023287,2]
[363201684,1748621470120,-535.78,0.00023287,2]
[363201685,1748621470130,-674.1,0.00023287,2]
[363201686,1748621470140,-660.41,0.00023287,2]
[363201687,1748621470150,-521.11,0.00023287,2]
[363201688,1748621470160,-420.0,0.00023287,2]
[363201689,1748621470170,-586.5,0.00023287,2]
[363201690,1748621470180,-486.66,0.00023287,2]
[363201691,1748621470190,-420.0,0.00023287,2]
[363201692,1748621470199,-660.07,0.00023287,2]
[363201693,1748621470210,-435.08,0.00023287,2]
[363201694,1748621470220,-607.52,0.00023287,2]
[363201695,1748621470230,-6048.52,0.00023287,2]
[363201696,1748621470239,-656.82,0.00023287,2]
[363201697,1748621470249,-988.3,0.00023287,2]
[363201698,1748621470259,-420.0,0.00023287,2]
[363201699,1748621470268,-420.0,0.00023287,2]
[363201700,1748621470278,-420.0,0.00023287,2]
[363201701,1748621470288,-757.13,0.00023287,2]
[363201702,1748621470298,-4088.4,0.00023287,2]
[363201703,1748621470308,-420.0,0.00023287,2]
[363201704,1748621470319,-1445.55,0.00023287,2]
[363201705,1748621470328,-420.0,0.00023287,2]
[363201706,1748621470338,-957.56,0.00023287,2]
[363201707,1748621470348,-1373.18,0.00023287,2]
[363201708,1748621470358,-3058.68,0.00023287,2]
[363201709,1748621470368,-2153.43,0.00023287,2]
[363201710,1748621470378,-420.0,0.00023287,2]
[363201711,1748621470388,-420.0,0.00023287,2]
[363201712,1748621470400,-1240.58,0.00023287,2]
[363201713,1748621470409,-420.0,0.00023287,2]
[363201714,1748621470419,-420.0,0.00023287,2]
[363201715,1748621470428,-457.49,0.00023287,2]
[363201716,1748621470438,-420.0,0.00023287,2]
[363201717,1748621470449,-420.0,0.00023287,2]
[363201718,1748621470459,-1202.6,0.00023287,2]
[363201719,1748621470468,-1697.84,0.00023287,2]
[363201720,1748621470478,-420.0,0.00023287,2]
[363201721,1748621470490,-420.0,0.00023287,2]
[363201722,1748621470500,-420.0,0.00023287,2]
[363201723,1748621470510,-1453.56,0.00023287,2]
[363201724,1748621470519,-4664.26,0.00023287,2]
[363201725,1748621470529,-420.0,0.00023287,2]
[363201726,1748621470540,-661.23,0.00023287,2]
[363201727,1748621470550,-557.77,0.00023287,2]
[363201728,1748621470560,-539.38,0.00023287,2]
[363201729,1748621470570,-573.95,0.00023287,2]
[363201730,1748621470580,-892.62,0.00023287,2]
[363201731,1748621470590,-421.77,0.00023287,2]
[363201732,1748621470602,-420.0,0.00023287,2]
[363201733,1748621470613,-420.0,0.00023287,2]
[363201734,1748621470623,-420.0,0.00023287,2]
[363201735,1748621470633,-474.82,0.00023287,2]
[363201736,1748621470643,-559.5,0.00023287,2]
[363201737,1748621470653,-420.0,0.00023287,2]
[363201738,1748621470663,-420.0,0.00023287,2]
[363201739,1748621470673,-1026.82,0.00023287,2]
[363201740,1748621470685,-904.65,0.00023287,2]
[363201741,1748621470695,-420.0,0.00023287,2]
[363201742,1748621470704,-478.53,0.00023287,2]
[363201743,1748621470714,-1487.96,0.00023287,2]
[363201744,1748621470725,-420.0,0.00023287,2]
[363201745,1748621470735,-1781.02,0.00023287,2]
[363201746,1748621470745,-465.53,0.00023287,2]
[363201747,1748621470755,-712.19,0.00023287,2]
[363201748,1748621470766,-2725.8,0.00023287,2]
[363201749,1748621470777,-8689.25,0.00023287,2]
[363201750,1748621470787,-445.2,0.00023287,2]
[363201751,1748621470797,-3605.9,0.00023287,2]
[363201752,1748621470808,-455.83,0.00023287,2]
[363201753,1748621470817,-420.0,0.00023287,2]
[363201754,1748621470827,-420.0,0.00023287,2]
[363201755,1748621470836,-420.96,0.00023287,2]
[363201756,1748621470846,-420.0,0.00023287,2]
[363201757,1748621470855,-456.81,0.00023287,2]
[363201758,1748621470865,-420.0,0.00023287,2]
[363201759,1748621470874,-689.0,0.00023287,2]
[363201760,1748621470884,-4965.11,0.00023287,2]
[363201761,1748621470894,-814.32,0.00023287,2]
[363201762,1748621470903,-420.0,0.00023287,2]
[363201763,1748621470913,-684.53,0.00023287,2]
[363201764,1748621470923,-2825.92,0.00023287,2]
[363201765,1748621470933,-420.0,0.00023287,2]
[363201766,1748621470943,-420.0,0.00023287,2]
[363201767,1748621470953,-1113.68,0.00023287,2]
[363201768,1748621470963,-332.46771949,0.00023287,2]
[363201769,1748621470972,-490.12,0.00023287,2]
[363201770,1748621470982,-420.0,0.00023287,2]
[363201771,1748621470991,-420.0,0.00023287,2]
[363201772,1748621471001,-985.67,0.00023287,2]
[363201773,1748621471010,-420.0,0.00023287,2]
[363201774,1748621471020,-421.96,0.00023287,2]
[363201775,1748621471029,-420.0,0.00023287,2]
[363201776,1748621471039,-420.0,0.00023287,2]
[363201777,1748621471049,-790.94,0.00023287,2]
[363201778,1748621471060,-420.0,0.00023287,2]
[363201779,1748621471070,-654.29,0.00023287,2]
[363201780,1748621471080,-1212.39,0.00023287,2]
[363201781,1748621471090,-669.88,0.00023287,2]
[363201782,1748621471100,-679.73,0.00023287,2]
[363201783,1748621471110,-420.0,0.00023287,2]
[363201784,1748621471120,-1005.75,0.00023287,2]
[363201785,1748621471130,-420.0,0.00023287,2]
[363201786,1748621471140,-421.04,0.00023287,2]
[363201787,1748621471150,-472.22,0.00023287,2]
[363201788,1748621471160,-1292.13,0.00023287,2]
[363201789,1748621471170,-1024.15,0.00023287,2]
[363201790,1748621471180,-598.05,0.00023287,2]
[363201791,1748621471191,-507.86,0.00023287,2]
[363201792,1748621471202,-420.0,0.00023287,2]
[363201793,1748621471212,-420.0,0.00023287,2]
[363201794,1748621471222,-1280.93,0.00023287,2]
[363201795,1748621471232,-485.5,0.00023287,2]
[363201796,1748621471241,-420.0,0.00023287,2]
[363201797,1748621471251,-1383.42,0.00023287,2]
[363201798,1748621471261,-420.0,0.00023287,2]
[363201799,1748621471271,-420.0,0.00023287,2]
[363201800,1748621471281,-453.1,0.00023287,2]
[363201801,1748621471291,-765.35,0.00023287,2]
[363201802,1748621471301,-204.2,0.00023287,2]
[363201803,1748621471310,-518.37,0.00023287,2]
[363201804,1748621471320,-1656.7,0.00023287,2]
[363201805,1748621471329,-3462.85,0.00023287,2]
[363201806,1748621471339,-1733.26,0.00023287,2]
[363201807,1748621471349,-1766.38,0.00023287,2]
[363201808,1748621471359,-1121.05,0.00023287,2]
[363201809,1748621471368,-779.82,0.00023287,2]
[363201810,1748621471378,-420.0,0.00023287,2]
[363201811,1748621471388,-1733.29,0.00023287,2]
[363201812,1748621471398,-430.54,0.00023287,2]
[363201813,1748621471408,-1057.53,0.00023287,2]
[363201814,1748621471418,-498.86,0.00023287,2]
[363201815,1748621471427,-4651.68,0.00023287,2]
[363201816,1748621471437,-420.0,0.00023287,2]
[363201817,1748621471447,-586.33,0.00023287,2]
[363201818,1748621471457,-883.98,0.00023287,2]
[363201819,1748621471467,-420.0,0.00023287,2]
[363201820,1748621471477,-509.36,0.00023287,2]
[363201821,1748621471487,-420.0,0.00023287,2]
[363201822,1748621471497,-462.09,0.00023287,2]
[363201823,1748621471727,-420.0,0.00023287,2]
[363201824,1748621471746,-1000.0,0.00023287,2]
[363201825,1748621471757,-420.0,0.00023287,2]
[363201826,1748621471770,-429.88,0.00023287,2]
[363201827,1748621471781,-918.5,0.00023287,2]
[363201828,1748621471791,-6943.32,0.00023287,2]
[363201829,1748621471802,-478.33,0.00023287,2]
[363201830,1748621471811,-1670.99,0.00023287,2]
[363201831,1748621471820,-420.0,0.00023287,2]
[363201832,1748621471830,-494.89,0.00023287,2]
[363201833,1748621471842,-420.0,0.00023287,2]
[363201834,1748621471853,-420.0,0.00023287,2]
[363201835,1748621471863,-420.0,0.00023287,2]
[363201836,1748621471873,-481.15,0.00023287,2]
[363201837,1748621471883,-420.0,0.00023287,2]
[363201838,1748621471892,-420.0,0.00023287,2]
[363201839,1748621471902,-420.0,0.00023287,2]
[363201840,1748621471912,-5313.78,0.00023287,2]
[363201841,1748621471921,-423.74,0.00023287,2]
[363201842,1748621471931,-422.14,0.00023287,2]
[363201843,1748621471941,-426.98,0.00023287,2]
[363201844,1748621471950,-641.17,0.00023287,2]
[363201845,1748621471960,-420.0,0.00023287,2]
[363201846,1748621471970,-420.0,0.00023287,2]
[363201847,1748621471980,-420.0,0.00023287,2]
[363201848,1748621471990,-420.0,0.00023287,2]
[363201849,1748621472000,-488.76,0.00023287,2]
[363201850,1748621472010,-759.34,0.00023287,2]
[363201851,1748621472019,-692.95,0.00023287,2]
[363201852,1748621472029,-1159.63,0.00023287,2]
[363201853,1748621472040,-2604.25,0.00023287,2]
[363201854,1748621472052,-420.0,0.00023287,2]
[363201855,1748621472061,-2234.11,0.00023287,2]
[363201856,1748621472071,-420.0,0.00023287,2]
[363201857,1748621472080,-2926.35,0.00023287,2]
[363201858,1748621472090,-7394.8,0.00023287,2]
[363201859,1748621472100,-420.0,0.00023287,2]
[363201860,1748621472109,-972.44,0.00023287,2]
[363201861,1748621472119,-420.0,0.00023287,2]
[363201862,1748621472128,-420.0,0.00023287,2]
[363201863,1748621472138,-545.89,0.00023287,2]
[363201864,1748621472148,-420.0,0.00023287,2]
[363201865,1748621472158,-1266.42,0.00023287,2]
[363201866,1748621472168,-559.57,0.00023287,2]
[363201867,1748621472179,-1031.04,0.00023287,2]
[363201868,1748621472189,-420.0,0.00023287,2]
[363201869,1748621472201,-17120.95,0.00023287,2]
[363201870,1748621472211,-1111.37,0.00023287,2]
[363201871,1748621472221,-420.0,0.00023287,2]
[363201872,1748621472231,-154.66205202,0.00023315,2]
[363201873,1748621472243,-180.47154186,0.00023349,2]
[363201874,1748621472254,-957.07,0.00023369,2]
[363201875,1748621472265,-2443.1,0.00023369,2]
[363201876,1748621472276,-1682.09,0.00023369,2]
[363201877,1748621472287,-3253.57,0.00023369,2]
[363201878,1748621472298,-3184.32,0.00023369,2]
[363201879,1748621472309,-658.9,0.00023369,2]
[363201880,1748621472318,-4073.28,0.00023369,2]
[363201881,1748621472328,-12023.02,0.00023369,2]
[363201882,1748621472337,-3742.49,0.00023369,2]
[363201883,1748621472347,-561.3,0.00023369,2]
[363201884,1748621472358,-3692.06123982,0.00023373,2]
[363201885,1748621472369,-3442.75,0.000234,2]
[363201886,1748621472379,-4565.2,0.000234,2]
[363201887,1748621472388,-4565.2,0.000234,2]
[363201888,1748621472398,-3442.75,0.000234,2]
[363201889,1748621472407,-483.5,0.00023446,2]
[363201890,1748621472417,-539.60999554,0.00023521,9]
[363201891,1748621472426,-154.66205202,0.00023534,2]
[363201892,1748621472436,-156.587,0.00023547,2]
[363201893,1748621472445,-215.0738,0.00023547,2]
[363201894,1748621472454,-150.0,0.0002356,2]
[363201895,1748621472464,-420.0,0.00023561,2]
[363201896,1748621472473,-420.0,0.00023561,2]
[363201897,1748621472483,-420.0,0.00023561,2]
[363201898,1748621472492,-420.0,0.00023561,2]
[363201899,1748621472501,-420.0,0.00023561,2]
[363201900,1748621472511,-420.0,0.00023561,2]
[363201901,1748621472520,-420.0,0.00023561,2]
[363201902,1748621472530,-465.97,0.00023561,2]
[363201903,1748621472540,-420.0,0.00023561,2]
[363201904,1748621472549,-420.0,0.00023561,2]
[363201905,1748621472560,-420.0,0.00023561,2]
[363201906,1748621472569,-420.0,0.00023561,2]
[363201907,1748621472579,-420.0,0.00023561,2]
[363201908,1748621472589,-420.0,0.00023561,2]
[363201909,1748621472598,-501.5093275,0.00023561,2]
[363201910,1748621472607,-420.0,0.00023561,2]
[363201911,1748621472617,-420.0,0.00023561,2]
[363201912,1748621472626,-420.0,0.00023561,2]
[363201913,1748621472635,-420.0,0.00023561,2]
[363201914,1748621472645,-420.0,0.00023561,2]
[363201915,1748621472654,-479.58,0.00023561,2]
[363201916,1748621472663,-420.0,0.00023561,2]
[363201917,1748621472673,-420.0,0.00023561,2]
[363201918,1748621472684,-939.99,0.00023561,2]
[363201919,1748621472694,-420.0,0.00023561,2]
[363201920,1748621472704,-420.0,0.00023561,2]
[363201921,1748621472713,-420.0,0.00023561,2]
[363201922,1748621472723,-420.0,0.00023561,2]
[363201923,1748621472732,-501.62,0.00023561,2]
[363201924,1748621472742,-420.0,0.00023561,2]
[363201925,1748621472751,-420.0,0.00023561,2]
[363201926,1748621472761,-420.0,0.00023561,2]
[363201927,1748621472771,-420.0,0.00023561,2]
[363201928,1748621472780,-420.0,0.00023561,2]
[363201929,1748621472790,-471.1,0.00023561,2]
[363201930,1748621472799,-420.0,0.00023561,2]
[363201931,1748621472810,-420.0,0.00023561,2]
[363201932,1748621472819,-420.0,0.00023561,2]
[363201933,1748621472828,-420.0,0.00023561,2]
[363201934,1748621472838,-415.94496589,0.00023561,2]
[363201935,1748621472849,-420.0,0.00023561,2]
[363201936,1748621472859,-493.78,0.00023561,2]
[363201937,1748621472868,-551.61063016,0.00023561,2]
[363201938,1748621472879,-420.0,0.00023561,2]
[363201939,1748621472888,-442.33,0.00023561,2]
[363201940,1748621472898,-420.0,0.00023561,2]
[363201941,1748621472907,-420.0,0.00023561,2]
[363201942,1748621472917,-420.0,0.00023561,2]
[363201943,1748621472927,-654.87,0.00023561,2]